bitfinex/quotes_ETHUSD_20251212
["timestamp","ask_amount","ask_price","bid_price","bid_amount"]
[1765505175857,0.4174,3233.8,3233.7,0.49]
[1765505176358,3.77503718,3233.8,3233.7,0.49]
[1765505177556,3.50973718,3233.8,3233.7,0.49]
[1765505178176,3.09233718,3233.8,3233.7,0.9412]
[1765505178383,3.09214594,3234.0,3233.7,0.9412]
[1765505179540,3.09214594,3234.0,3233.7,1.4027]
[1765505179944,3.09214594,3234.0,3233.9,0.4512]
[1765505180344,0.58047529,3234.1,3233.9,0.4512]
[1765505180545,0.6925,3234.0,3233.7,0.49]
[1765505180766,0.0023,3233.9,3233.8,0.49]
[1765505182268,1.00938808,3233.9,3233.7,0.49]
[1765505182471,3.09233718,3233.8,3233.7,0.49]
[1765505182772,3.29143718,3233.8,3233.7,0.49]
[1765505182978,3.78283718,3233.8,3233.7,0.49]
[1765505183984,9.96751154,3233.8,3232.9,0.187]
[1765505184187,0.1972,3233.0,3232.0,0.001]
[1765505184480,3.09319189,3233.0,3232.6,0.4615]
[1765505185191,3.09319189,3233.0,3232.9,0.4512]
[1765505185479,3.09319189,3233.0,3232.9,0.9412]
[1765505185859,3.09291104,3233.2,3232.9,0.9412]
[1765505186462,3.09291104,3233.2,3233.1,0.4512]
[1765505186863,3.09271973,3233.4,3233.1,0.6382]
[1765505187160,3.09271973,3233.4,3233.3,0.4512]
[1765505187751,3.09271973,3233.4,3233.3,0.9127]
[1765505188552,3.09252845,3233.6,3233.3,0.9127]
[1765505188873,3.09252845,3233.6,3233.5,0.4512]
[1765505190448,0.37078808,3233.9,3233.5,0.4512]
[1765505190671,3.09233718,3233.8,3233.6,0.4615]
[1765505190878,3.09233718,3233.8,3233.4,0.49]
[1765505191080,3.09233718,3233.8,3233.4,0.9515]
[1765505191460,3.09233718,3233.8,3233.4,0.49]
[1765505191781,3.09233718,3233.8,3233.5,0.4615]
[1765505192482,3.09233718,3233.8,3233.7,0.4512]
[1765505192679,3.09214998,3234.0,3233.7,0.4512]
[1765505193052,6.18429996,3234.0,3233.7,0.4512]
[1765505193362,0.4583,3233.8,3233.7,0.49]
[1765505193555,0.37078808,3233.9,3233.7,0.49]
[1765505193899,0.37078808,3233.9,3233.7,0.9412]
[1765505194095,0.37078808,3233.9,3233.8,0.4512]
[1765505194461,3.09214998,3234.0,3233.8,0.9127]
[1765505194671,3.67262527,3234.0,3233.9,0.4512]
[1765505194894,3.67262527,3234.0,3233.7,0.49]
[1765505195462,6.76477525,3234.0,3233.7,0.49]
[1765505197170,7.25617525,3234.0,3233.7,0.49]
[1765505197572,0.2014,3233.8,3233.7,0.49]
[1765505197768,0.2014,3233.8,3233.1,0.187]
[1765505198101,0.2014,3233.8,3233.2,0.9515]
[1765505198272,0.2014,3233.8,3233.2,0.4615]
[1765505198763,0.2014,3233.8,3233.3,0.49]
[1765505199165,3.09243281,3233.7,3233.4,0.4615]
[1765505199695,3.09243281,3233.7,3233.6,0.4512]
[1765505201271,3.09243281,3233.7,3233.5,0.49]
[1765505201580,3.09243281,3233.7,3233.4,0.4615]
[1765505201783,3.09243281,3233.7,3233.6,0.9412]
[1765505203675,3.29383281,3233.7,3233.6,0.49]
[1765505203889,3.29383281,3233.7,3232.9,3.58316894]
[1765505203890,6.87476562,3233.7,3232.9,0.4824]
[1765505204092,6.87476562,3233.7,3232.3,0.001]
[1765505204093,6.18486562,3233.7,3232.7,0.4824]
[1765505204373,6.18486562,3233.7,3233.0,0.49]
[1765505204374,6.68046562,3233.7,3233.0,0.49]
[1765505204778,0.4956,3233.6,3233.0,0.49]
[1765505205174,3.09243281,3233.7,3233.1,0.1838]
[1765505205391,0.58047529,3234.0,3233.6,0.4983]
[1765505205597,0.58047529,3234.0,3233.5,0.49]
[1765505205598,3.09224156,3233.9,3233.5,0.49]
[1765505206101,6.68016617,3233.9,3233.5,0.49]
[1765505210499,0.4956,3233.8,3233.5,0.49]
[1765505211104,3.09243281,3233.7,3233.5,0.49]
[1765505213304,6.18448312,3233.9,3233.5,0.49]
[1765505213604,0.1973,3233.6,3232.9,0.4824]
[1765505213907,0.002,3233.4,3233.1,0.49]
[1765505214806,0.002,3233.4,3233.1,0.9724]
[1765505215307,3.09262409,3233.5,3233.3,0.4983]
[1765505215481,3.0925613,3233.6,3233.3,0.4983]
[1765505216212,6.1851226,3233.6,3233.3,0.4983]
[1765505216412,6.6807226,3233.6,3233.3,0.4983]
[1765505217825,6.6807226,3233.6,3233.3,0.1983]
[1765505218720,3.5881613,3233.6,3233.3,0.1983]
[1765505219118,0.4508,3233.4,3233.1,0.49]
[1765505219729,3.09233718,3233.8,3233.3,0.4983]
[1765505220097,3.58793718,3233.8,3233.3,0.9807]
[1765505220615,6.68027436,3233.8,3233.3,0.9807]
[1765505221191,6.1942845,3233.4,3232.3,0.001]
[1765505221392,0.048,3233.2,3232.4,0.9724]
[1765505221587,5.7434845,3233.1,3232.3,0.4834]
[1765505221793,6.18620476,3233.0,3232.4,0.49]
[1765505222145,6.68180476,3233.0,3232.4,0.49]
[1765505222438,6.68180476,3233.0,3232.3,0.001]
[1765505222439,0.4508,3232.5,3232.3,0.001]
[1765505222601,0.0257,3232.4,3232.3,0.001]
[1765505223004,0.5213,3232.4,3232.3,0.001]
[1765505224122,3.61497652,3232.4,3232.3,0.001]
[1765505224422,3.11937652,3232.4,3232.3,0.001]
[1765505226420,3.11937652,3232.4,3232.3,0.9817]
[1765505226421,3.09367652,3232.4,3232.3,0.9817]
[1765505226626,3.09367652,3232.4,3232.3,0.4993]
[1765505226920,3.54447652,3232.4,3232.3,0.001]
[1765505228223,4.04007652,3232.4,3232.3,0.001]
[1765505228636,3.54447652,3232.4,3232.3,0.001]
[1765505230727,4.04007652,3232.4,3232.3,0.001]
[1765505231337,10.36403631,3232.4,3232.3,0.001]
[1765505231694,10.85503631,3232.4,3232.3,0.001]
[1765505232330,3.09367652,3232.4,3232.3,0.4993]
[1765505232499,3.54447652,3232.4,3232.3,0.001]
[1765505232900,3.09367652,3232.4,3232.3,0.001]
[1765505233131,3.09367652,3232.4,3232.3,0.4609]
[1765505233503,3.56557652,3232.4,3232.3,0.001]
[1765505235136,0.12387525,3232.6,3232.3,0.9709]
[1765505235325,0.58047529,3232.9,3232.5,0.4792]
[1765505235625,0.12386412,3232.8,3232.3,0.001]
[1765505236031,0.61726412,3232.8,3232.3,0.001]
[1765505237223,6.18677884,3232.7,3232.3,0.001]
[1765505237539,3.09331876,3232.8,3232.4,0.4907]
[1765505237838,3.09331876,3232.8,3232.7,0.4792]
[1765505237839,3.67379405,3232.8,3232.7,0.4792]
[1765505238204,3.09310238,3233.0,3232.7,0.4792]
[1765505239215,0.58047529,3233.2,3232.9,0.4792]
[1765505239420,3.58358391,3233.3,3233.1,0.4792]
[1765505239719,0.58047529,3233.4,3233.2,0.4792]
[1765505239919,0.58047529,3233.4,3232.8,0.4907]
[1765505239920,3.09262409,3233.5,3233.3,0.4792]
[1765505240236,3.67309938,3233.5,3232.8,0.4907]
[1765505240424,7.13651155,3233.5,3232.8,1.42345389]
[1765505240732,7.13651155,3233.5,3232.9,0.4907]
[1765505241230,7.13651155,3233.5,3232.5,0.49]
[1765505241533,0.37078808,3233.3,3232.5,0.9807]
[1765505241933,0.37078808,3233.3,3232.6,0.4907]
[1765505243425,6.18582208,3233.2,3232.5,0.4907]
[1765505243734,6.18582208,3233.2,3232.7,0.49]
[1765505244906,6.67922208,3233.2,3232.7,0.49]
[1765505245807,3.58631104,3233.2,3232.7,0.49]
[1765505246635,6.67922208,3233.2,3232.7,0.49]
[1765505247536,3.58631104,3233.2,3232.7,0.9807]
[1765505247741,6.67922208,3233.2,3232.7,0.9807]
[1765505250337,3.58631104,3233.2,3232.7,0.9807]
[1765505250538,6.67922208,3233.2,3232.7,0.9807]
[1765505251551,6.67922208,3233.2,3232.7,0.4907]
[1765505251718,6.67922208,3233.2,3232.8,0.49]
[1765505251920,6.67922208,3233.2,3233.1,0.4792]
[1765505251921,3.09291104,3233.2,3233.1,0.4792]
[1765505253830,6.18545156,3233.4,3233.1,0.4792]
[1765505256670,3.09272578,3233.4,3233.3,0.4792]
[1765505257381,3.54692578,3233.4,3233.1,0.6736]
[1765505260442,3.09272578,3233.4,3233.1,0.6736]
[1765505260643,3.09272578,3233.4,3233.3,0.4792]
[1765505261573,3.46342593,3233.5,3233.3,0.4792]
[1765505261738,3.46342593,3233.5,3233.4,0.4792]
[1765505261938,3.09263785,3233.5,3233.4,0.4792]
[1765505262138,3.09263785,3233.5,3233.4,0.9699]
[1765505262841,3.09252845,3233.6,3233.4,0.9699]
[1765505263443,3.09252845,3233.6,3233.5,0.4841]
[1765505264581,0.1881,3234.2,3233.5,0.9548]
[1765505264769,3.46283841,3234.1,3233.6,0.9741]
[1765505264965,3.46283841,3234.1,3233.6,1.4448]
[1765505265169,3.46283841,3234.1,3233.7,0.4707]
[1765505268279,3.46283841,3234.1,3233.8,0.49]
[1765505268489,0.95126337,3234.3,3234.0,0.4841]
[1765505269376,1.40266337,3234.3,3234.0,0.4841]
[1765505269778,0.95126337,3234.3,3234.0,0.9548]
[1765505270291,3.09195473,3234.2,3234.0,0.4841]
[1765505270588,0.4573,3234.1,3233.8,0.9607]
[1765505271060,0.4573,3234.1,3233.8,0.49]
[1765505271256,0.4573,3234.1,3233.9,0.49]
[1765505271680,0.0642,3234.0,3233.9,0.49]
[1765505271880,3.54335473,3234.2,3233.9,0.49]
[1765505273564,3.09195473,3234.2,3233.9,0.49]
[1765505274888,3.09186842,3234.3,3234.1,0.6689]
[1765505275182,3.67234371,3234.3,3234.2,0.4841]
[1765505275388,3.67234371,3234.3,3234.0,0.4707]
[1765505276360,6.76421213,3234.3,3233.9,0.49]
[1765505276557,7.21561213,3234.3,3233.9,0.49]
[1765505276962,0.82808808,3234.0,3233.5,0.49]
[1765505277162,0.82418808,3233.6,3233.1,0.1829]
[1765505277393,0.82418808,3233.6,3233.2,0.49]
[1765505277559,1.27558808,3233.6,3233.2,0.49]
[1765505277758,1.27558808,3233.6,3233.1,0.1829]
[1765505277962,0.82418808,3233.6,3233.2,0.9607]
[1765505278284,0.82418808,3233.6,3233.2,1.3843701]
[1765505278684,3.09204289,3234.2,3233.5,0.4841]
[1765505278977,0.002,3234.6,3234.1,0.6436]
[1765505278978,3.09167332,3234.5,3234.1,0.6436]
[1765505279168,6.18334663,3234.5,3234.1,0.49]
[1765505279373,0.4573,3234.2,3234.1,0.49]
[1765505280392,0.4573,3234.2,3233.2,12.35239739]
[1765505280393,0.9087,3234.2,3233.6,0.4707]
[1765505280577,0.4514,3234.2,3233.7,0.49]
[1765505280773,3.09205033,3234.1,3233.7,0.49]
[1765505281093,3.54345033,3234.1,3233.7,0.49]
[1765505281395,3.54345033,3234.1,3233.2,0.4236701]
[1765505281396,6.18410066,3234.1,3233.2,3.51655143]
[1765505281586,0.37078808,3233.9,3233.3,0.36994514]
[1765505281898,0.37078808,3233.9,3233.4,0.49]
[1765505282077,0.6454,3233.8,3233.4,0.49]
[1765505282262,0.4573,3233.5,3233.4,0.49]
[1765505282466,3.09205033,3234.1,3233.7,0.4841]
[1765505282779,6.18371826,3234.3,3233.8,0.4841]
[1765505282982,0.58047529,3234.2,3233.8,0.4841]
[1765505283194,0.58047529,3234.2,3233.9,0.4707]
[1765505283794,0.4573,3234.0,3233.6,0.4707]
[1765505284093,0.4573,3234.0,3233.4,0.49]
[1765505284297,0.58047529,3234.2,3233.5,0.4707]
[1765505284516,3.0917386,3234.5,3234.1,0.4841]
[1765505284798,3.0917386,3234.5,3234.4,0.4841]
[1765505284799,1e-08,3234.5,3234.4,0.4841]
[1765505285001,1e-08,3234.5,3234.4,0.84170012]
[1765505285171,1e-08,3234.5,3234.4,0.9548]
[1765505285498,0.45730001,3234.5,3233.4,3.09263387]
[1765505285687,0.0541,3234.2,3233.6,0.9607]
[1765505285886,1e-08,3234.5,3233.6,0.9607]
[1765505286087,1e-08,3234.5,3234.1,0.4841]
[1765505286269,1e-08,3234.5,3234.1,0.9741]
[1765505286471,1e-08,3234.5,3234.4,0.4841]
[1765505287303,1e-08,3234.5,3234.4,0.9548]
[1765505288380,1e-08,3234.5,3234.4,1.35947408]
[1765505288591,1e-08,3234.5,3234.4,1.360304]
[1765505288790,0.002,3234.9,3234.5,0.405504]
[1765505289001,0.002,3234.9,3234.8,10.30439215]
[1765505289188,0.002,3234.9,3234.8,16.04732379]
[1765505289387,0.002,3234.9,3234.8,16.51802379]
[1765505289593,0.002,3234.9,3234.8,10.77509215]
[1765505289805,0.002,3234.9,3234.8,12.21065098]
[1765505290694,0.002,3234.9,3234.8,6.46771934]
[1765505293614,0.002,3234.9,3234.8,6.59144209]
[1765505294282,0.002,3234.9,3234.8,6.18593809]
[1765505294482,0.002,3234.9,3234.8,2.04338158]
[1765505294694,1.1091,3234.9,3234.8,0.61272275]
[1765505294893,1.1091,3234.9,3234.8,0.12372275]
[1765505295213,1.1091,3234.9,3234.3,0.489]
[1765505295381,0.4947,3234.8,3234.3,0.489]
[1765505295584,0.0212,3234.4,3234.3,0.489]
[1765505296014,3.11296354,3234.4,3234.3,0.489]
[1765505296184,3.60766354,3234.4,3234.3,0.489]
[1765505296922,0.5159,3234.4,3234.3,0.489]
[1765505297823,3.60766354,3234.4,3234.3,0.489]
[1765505298020,6.69942708,3234.4,3233.3,3.09274882]
[1765505298217,6.69942708,3234.4,3233.4,0.489]
[1765505298218,0.4547,3233.8,3233.4,0.489]
[1765505298525,0.4547,3233.8,3233.5,0.489]
[1765505298695,0.4547,3233.8,3233.2,3.09291104]
[1765505298901,0.4547,3233.8,3233.6,0.489]
[1765505299421,0.0222,3233.7,3233.6,0.489]
[1765505299724,6.18352708,3234.4,3233.6,0.489]
[1765505299725,3.5866849,3234.2,3233.6,0.489]
[1765505299921,3.5866849,3234.2,3233.6,0.9859]
[1765505300220,3.58654631,3234.4,3233.7,0.489]
[1765505300591,0.4947,3234.3,3233.7,0.489]
[1765505301322,0.4947,3234.3,3233.7,0.89226578]
[1765505301622,3.09156759,3234.7,3234.2,0.4969]
[1765505301824,0.4947,3234.8,3234.3,0.489]
[1765505301989,0.76347529,3234.9,3234.3,0.489]
[1765505302192,0.183,3234.9,3234.3,0.89678322]
[1765505302393,3.27429356,3234.9,3234.3,0.89678322]
[1765505302593,0.183,3234.9,3234.3,0.89678322]
[1765505302838,3.27428638,3234.9,3234.3,0.89678322]
[1765505303022,0.002,3234.9,3234.8,0.4969]
[1765505303320,0.002,3234.9,3234.8,1.391404]
[1765505303527,0.002,3234.9,3234.8,1.842504]
[1765505303724,0.002,3234.9,3234.8,2.0267544]
[1765505303931,0.002,3234.9,3234.8,5.24186679]
[1765505304227,0.002,3234.9,3234.8,5.11813562]
[1765505304692,0.002,3234.9,3234.8,4.62913562]
[1765505305022,0.002,3234.9,3234.8,5.69861091]
[1765505308393,0.002,3234.9,3234.8,5.72952472]
[1765505309130,0.002,3234.9,3234.8,5.69861091]
[1765505312227,0.002,3234.9,3234.8,4.35300691]
[1765505312397,0.002,3234.9,3234.8,4.84200691]
[1765505312719,0.002,3234.9,3234.8,5.69861091]
[1765505312926,0.002,3234.9,3234.8,5.72952472]
[1765505313120,0.002,3234.9,3234.8,5.69861091]
[1765505314226,0.002,3234.9,3234.8,5.24751091]
[1765505314532,0.002,3234.9,3234.8,5.69861091]
[1765505314894,0.002,3234.9,3234.8,5.24751091]
[1765505315507,0.002,3234.9,3234.8,4.75851091]
[1765505315711,0.002,3234.9,3234.8,5.24751091]
[1765505316125,0.002,3234.9,3234.8,4.10819503]
[1765505316329,0.002,3234.9,3234.8,4.07728122]
[1765505316634,0.002,3234.9,3234.8,4.93388522]
[1765505317599,0.002,3234.9,3234.8,12.08812661]
[1765505318231,0.002,3234.9,3234.8,3.99378522]
[1765505318435,0.002,3234.9,3234.8,5.19131274]
[1765505318607,0.002,3234.9,3234.8,4.29680874]
[1765505318812,0.002,3234.9,3234.8,5.64241274]
[1765505321931,0.002,3234.9,3234.8,6.22288803]
[1765505323941,0.002,3234.9,3234.8,5.77178803]
[1765505324150,0.002,3234.9,3234.8,5.27488803]
[1765505324303,0.002,3234.9,3234.8,5.73318803]
[1765505325136,0.002,3234.9,3234.8,6.21038803]
[1765505325504,0.002,3234.9,3234.8,13.36462942]
[1765505333019,0.433,3234.9,3234.8,3.79990874]
[1765505333248,0.4957,3234.9,3234.8,3.58038122]
[1765505333547,0.495,3234.9,3234.8,3.98588522]
[1765505333851,0.495,3234.9,3234.8,3.58038122]
[1765505334022,0.002,3234.9,3234.8,4.03868122]
[1765505334343,0.4957,3234.9,3234.8,4.69890232]
[1765505334551,0.4957,3234.9,3234.8,4.20990232]
[1765505334849,0.002,3234.9,3234.8,5.15720232]
[1765505335724,0.002,3234.9,3234.8,6.21487761]
[1765505336817,0.002,3234.9,3234.8,6.24579142]
[1765505337255,0.002,3235.0,3234.9,0.98597929]
[1765505337559,0.002,3235.1,3234.9,3.66921993]
[1765505337737,0.002,3235.2,3235.1,0.405504]
[1765505338057,0.199,3235.9,3235.1,1.021304]
[1765505338223,0.199,3235.9,3235.3,0.4583]
[1765505338423,0.199,3235.9,3235.3,0.863804]
[1765505338750,0.199,3235.9,3235.3,1.341004]
[1765505339048,0.4833,3236.4,3235.3,9.07572068]
[1765505339252,0.4833,3236.1,3235.3,12.16662415]
[1765505340762,0.433,3235.4,3235.2,3.09099388]
[1765505340975,0.4315,3235.3,3234.9,0.58047529]
[1765505341125,0.4848,3235.4,3235.0,0.489]
[1765505341324,3.57420932,3235.3,3234.6,3.09155]
[1765505341519,0.2033,3234.7,3234.4,3.09173999]
[1765505341847,0.4315,3234.5,3234.4,3.67221528]
[1765505342027,0.4315,3234.5,3234.4,4.16121528]
[1765505342356,0.6809,3234.7,3234.4,7.25297882]
[1765505342534,0.432,3234.5,3234.4,4.16121528]
[1765505342861,0.6804,3234.9,3234.5,0.405504]
[1765505343422,0.6804,3234.9,3234.6,6.18314474]
[1765505344058,0.6804,3234.9,3234.6,3.09157237]
[1765505344059,0.4325,3234.7,3234.6,3.09157237]
[1765505344769,0.9134,3234.7,3234.6,3.09157237]
[1765505344946,0.4325,3234.7,3234.6,3.09157237]
[1765505345644,0.9134,3234.7,3234.6,3.09157237]
[1765505346164,0.4325,3234.7,3234.6,3.09157237]
[1765505346367,0.199,3234.9,3234.6,7.02557742]
[1765505346536,0.4833,3235.3,3234.6,7.02557742]
[1765505347267,0.4833,3235.3,3234.7,0.405504]
[1765505347438,0.4833,3235.3,3234.8,0.489]
[1765505347946,0.002,3235.4,3235.0,0.405504]
[1765505348339,0.4853,3235.4,3235.0,0.405504]
[1765505348537,0.4307,3235.1,3235.0,0.405504]
[1765505349864,0.4307,3235.1,3235.0,3.4966941]
[1765505350068,0.4853,3235.4,3235.0,7.0461842]
[1765505350376,0.002,3235.4,3235.1,0.70461842]
[1765505350580,0.002,3235.4,3235.2,0.489]
[1765505351675,0.002,3235.4,3235.3,3.09090347]
[1765505351838,0.4853,3235.4,3235.3,3.09090347]
[1765505352038,0.916,3235.4,3235.3,3.09090347]
[1765505352457,0.916,3235.4,3235.2,3.57997448]
[1765505352773,0.914,3235.3,3235.2,3.57997448]
[1765505353568,0.914,3235.3,3235.2,3.09097448]
[1765505353774,0.914,3235.3,3235.2,3.57997448]
[1765505355148,0.914,3235.3,3235.2,3.09097448]
[1765505355460,0.914,3235.3,3235.2,0.489]
[1765505356060,0.914,3235.3,3235.0,3.0911561]
[1765505356261,0.457,3235.2,3234.9,3.09128477]
[1765505356565,0.457,3235.2,3235.0,0.489]
[1765505356970,0.4685,3235.1,3235.0,0.489]
[1765505357170,0.002,3235.4,3235.0,3.93821858]
[1765505357368,0.002,3235.4,3235.0,7.48770868]
[1765505357761,0.002,3235.4,3235.3,8.01804539]
[1765505357972,0.002,3235.4,3235.3,11.68942415]
[1765505358486,0.002,3235.4,3235.3,4.56588276]
[1765505358659,0.002,3235.4,3235.3,5.34641252]
[1765505359775,0.002,3235.4,3235.3,5.80471252]
[1765505360664,0.002,3235.4,3235.3,12.01630883]
[1765505362179,0.002,3235.4,3235.3,11.43583354]
[1765505362557,0.002,3235.4,3235.3,12.01630883]
[1765505362760,0.002,3236.2,3235.4,1.92607929]
[1765505362949,0.002,3236.2,3236.1,1.051704]
[1765505363158,0.002,3236.2,3236.1,1.540704]
[1765505363684,0.002,3236.2,3236.1,4.63084336]
[1765505364074,0.002,3236.2,3236.1,5.11264336]
[1765505365592,0.002,3236.2,3236.1,5.69311865]
[1765505365770,0.002,3236.2,3236.1,7.28622848]
[1765505368470,0.002,3236.7,3236.2,0.405504]
[1765505368679,0.002,3236.7,3236.6,0.863804]
[1765505368886,0.002,3236.7,3236.6,1.352804]
[1765505369089,0.002,3237.1,3236.7,0.405504]
[1765505369310,0.002,3237.1,3237.0,8.33849279]
[1765505369479,0.002,3237.1,3237.0,9.40796808]
[1765505369801,0.002,3237.1,3237.0,9.88976808]
[1765505370296,0.002,3237.1,3237.0,12.97904827]
[1765505370508,0.4753,3237.1,3237.0,4.56425948]
[1765505370678,0.4753,3237.1,3237.0,5.3578304]
[1765505370879,0.002,3237.1,3237.0,5.3578304]
[1765505371417,0.002,3237.1,3237.0,6.2979304]
[1765505372103,0.002,3237.1,3237.0,5.8161304]
[1765505372599,0.4753,3237.1,3237.0,4.8688304]
[1765505372806,0.4753,3237.1,3237.0,5.3578304]
[1765505373302,0.002,3237.1,3237.0,5.3578304]
[1765505373510,0.002,3237.1,3237.0,6.2979304]
[1765505375791,0.002,3237.4,3237.1,0.98597929]
[1765505375988,0.1869,3238.5,3237.5,0.405504]
[1765505376182,0.1869,3238.5,3237.8,6.17703378]
[1765505376376,0.457,3238.4,3237.8,6.17703378]
[1765505377088,0.457,3238.4,3238.0,0.405504]
[1765505377295,0.4733,3238.1,3238.0,0.405504]
[1765505377681,0.9303,3238.1,3238.0,0.405504]
[1765505378006,0.002,3238.4,3238.0,1.57095778]
[1765505378383,0.002,3238.4,3238.2,0.405504]
[1765505378600,0.002,3238.4,3238.3,0.489]
[1765505379092,0.4753,3238.4,3238.3,0.489]
[1765505379501,0.9323,3238.4,3238.3,0.489]
[1765505383577,0.002,3238.4,3238.3,3.98254402]
[1765505383807,0.002,3238.4,3238.3,5.16442008]
[1765505384001,0.002,3238.4,3238.3,4.68962008]
[1765505384205,0.4582,3238.4,3238.3,4.68962008]
[1765505384607,0.4582,3238.4,3238.3,0.489]
[1765505384608,0.9141,3238.4,3238.3,0.489]
[1765505390016,4.00204466,3238.4,3238.3,0.489]
[1765505390205,4.00204466,3238.4,3237.6,3.08863804]
[1765505390408,0.0561,3237.7,3237.6,3.08863804]
[1765505390601,0.0561,3237.7,3237.6,3.57763804]
[1765505390806,0.512,3237.7,3237.6,3.57763804]
[1765505391183,0.512,3237.7,3237.6,0.489]
[1765505392488,0.512,3237.7,3237.2,3.08908852]
[1765505392813,0.4559,3237.7,3237.6,0.489]
[1765505393581,0.9121,3237.7,3237.6,0.489]
[1765505398894,4.00071228,3237.7,3237.6,0.489]
[1765505399231,4.00071228,3237.7,3237.5,0.489]
[1765505399528,0.4559,3237.6,3237.5,0.489]
[1765505399728,0.9121,3237.6,3237.5,0.489]
[1765505400922,0.4562,3237.6,3237.5,0.489]
[1765505401128,0.1838,3237.8,3237.5,0.9638]
[1765505401424,0.6397,3238.0,3237.5,0.9638]
[1765505401597,0.4562,3237.6,3237.5,0.489]
[1765505402099,0.9121,3237.6,3237.5,0.489]
[1765505403303,0.4562,3237.6,3237.5,0.489]
[1765505404527,0.4562,3237.6,3237.5,3.57780308]
[1765505405029,0.4559,3237.9,3237.5,4.05260308]
[1765505405233,0.002,3238.4,3237.5,4.05260308]
[1765505405234,0.4559,3238.2,3237.7,3.08855376]
[1765505406000,0.4562,3237.8,3237.5,4.86442871]
[1765505406822,0.4562,3237.8,3237.6,3.08870206]
[1765505407331,0.0561,3237.7,3237.6,3.08870206]
[1765505407532,0.4559,3238.0,3237.6,4.45651667]
[1765505407713,0.4559,3238.0,3237.6,4.93131667]
[1765505408105,0.4562,3237.7,3237.6,4.45651667]
[1765505408430,0.4562,3237.7,3236.6,3.08957528]
[1765505408607,6.63257097,3238.0,3236.7,0.489]
[1765505408608,0.512,3237.6,3236.7,0.489]
[1765505409001,0.512,3237.6,3236.9,3.08936841]
[1765505409196,0.512,3237.6,3236.9,3.08930115]
[1765505409420,0.512,3237.6,3237.1,5.72490061]
[1765505409421,0.4559,3237.6,3237.1,5.72490061]
[1765505409624,0.4559,3238.1,3237.5,0.4748]
[1765505409826,0.4559,3238.1,3237.6,0.489]
[1765505410234,0.1838,3238.3,3237.7,5.72490061]
[1765505410450,0.6397,3238.3,3237.7,5.72490061]
[1765505411127,0.6397,3238.3,3237.7,6.34629067]
[1765505411323,0.6397,3238.3,3237.7,0.62139006]
[1765505411324,0.4562,3237.8,3237.7,0.62139006]
[1765505412143,0.4559,3238.2,3237.7,4.18478509]
[1765505412328,0.1838,3238.3,3237.7,4.18478509]
[1765505412637,1.03837529,3238.4,3237.8,0.4989]
[1765505412842,1.03837529,3238.4,3237.7,4.18478509]
[1765505414836,0.002,3238.4,3238.0,5.72490061]
[1765505415037,0.002,3238.4,3238.1,0.489]
[1765505415936,0.002,3238.4,3238.1,3.5772049]
[1765505416908,0.002,3238.4,3238.3,0.4905]
[1765505417115,0.002,3238.4,3238.3,1.24664397]
[1765505417850,0.002,3238.4,3238.3,5.77376328]
[1765505426356,0.002,3238.4,3238.3,0.75614397]
[1765505426357,0.9435,3238.4,3238.3,0.75614397]
[1765505426656,0.9435,3238.4,3238.3,0.489]
[1765505427033,0.9435,3238.4,3238.2,3.0881272]
[1765505427235,0.0218,3238.3,3238.2,3.4936312]
[1765505427558,0.5035,3238.3,3238.2,0.489]
[1765505428426,0.0218,3238.3,3238.2,0.489]
[1765505428832,0.002,3238.4,3238.2,1.4326]
[1765505429044,0.002,3238.4,3238.2,0.9795]
[1765505429742,0.002,3238.4,3238.3,0.4905]
[1765505430853,0.002,3238.4,3238.3,3.57854002]
[1765505431030,0.4618,3238.4,3238.2,0.489]
[1765505431237,0.0218,3238.3,3238.2,0.489]
[1765505431821,0.5035,3238.3,3238.2,0.489]
[1765505432058,0.5035,3238.3,3238.2,3.57713538]
[1765505432355,0.002,3238.4,3238.2,3.93484892]
[1765505432554,0.002,3238.4,3238.3,3.08804002]
[1765505432930,0.4618,3238.4,3238.3,3.08804002]
[1765505433236,0.4618,3238.4,3238.3,3.57704002]
[1765505433437,0.4618,3238.4,3238.3,3.98254402]
[1765505433646,0.002,3238.4,3238.3,5.21589244]
[1765505434663,0.002,3238.4,3238.3,5.66899244]
[1765505436074,0.002,3238.4,3238.3,5.21589244]
[1765505437068,0.002,3238.4,3238.3,5.66899244]
[1765505437367,0.002,3238.4,3238.3,6.6583208]
[1765505437527,0.002,3238.4,3238.3,6.24946773]
[1765505437728,0.002,3238.4,3238.3,6.37305478]
[1765505437928,0.002,3238.4,3238.3,5.79636773]
[1765505438754,0.002,3238.4,3238.3,11.5162077]
[1765505439432,0.002,3238.4,3238.3,10.93573241]
[1765505439931,0.9435,3238.4,3238.3,6.95168839]
[1765505440166,0.9435,3238.4,3238.3,9.29687999]
[1765505440630,0.9435,3238.4,3238.3,3.57704002]
[1765505441773,0.9435,3238.4,3237.9,6.176843]
[1765505441959,0.9435,3238.4,3238.0,1.06947529]
[1765505442146,0.4618,3238.4,3238.0,1.06947529]
[1765505442462,0.4618,3238.4,3238.1,0.76994183]
[1765505443062,0.002,3238.4,3238.3,0.4516]
[1765505443247,0.002,3238.4,3238.3,0.857104]
[1765505443952,0.002,3238.4,3238.3,3.94514402]
[1765505449352,0.002,3238.4,3238.3,4.45662442]
[1765505449543,0.002,3238.4,3238.3,6.00210705]
[1765505450359,0.002,3238.4,3238.3,5.97122665]
[1765505451849,0.002,3238.4,3238.3,6.09481752]
[1765505453793,0.002,3238.4,3238.3,5.61421752]
[1765505455878,0.9545,3238.4,3238.3,4.63352265]